bitfinex/quotes_SOLUSD_20260102
["timestamp","ask_amount","ask_price","bid_price","bid_amount"]
[1767372339692,9.16026572,130.5,130.48,0.75871014]
[1767372339898,9.16026572,130.5,130.48,0.1]
[1767372340115,18.32052844,130.5,130.48,0.1]
[1767372340386,9.16026272,130.49,130.48,0.1]
[1767372341114,9.16026272,130.48,130.42,0.65871014]
[1767372341314,13.96,130.49,130.41,0.65871014]
[1767372341611,14.4316489,130.48,130.42,0.65871014]
[1767372341810,9.63191462,130.5,130.42,0.65871014]
[1767372341997,18.32052844,130.5,130.45,0.65871014]
[1767372342196,13.96,130.49,130.45,0.65871014]
[1767372342514,13.96,130.49,130.41,26.83802798]
[1767372342515,9.16026272,130.46,130.41,8.3264291]
[1767372342701,13.98,130.46,130.41,8.3264291]
[1767372342904,9.16026272,130.45,130.42,0.65871014]
[1767372343303,9.62095315,130.46,130.41,9.81897286]
[1767372343516,9.16026272,130.48,130.43,0.65871014]
[1767372343694,13.98,130.48,130.43,0.65871014]
[1767372343899,9.16026272,130.47,130.43,0.65871014]
[1767372344110,13.98,130.48,130.41,9.16026272]
[1767372344111,18.32052844,130.45,130.41,0.65871014]
[1767372344396,23.14026572,130.45,130.41,0.65871014]
[1767372344609,9.16026272,130.44,130.41,0.65871014]
[1767372344916,23.14026572,130.45,130.41,0.65871014]
[1767372345104,9.16026572,130.45,130.42,8.32618335]
[1767372345304,9.16026572,130.45,130.42,0.65871014]
[1767372346028,18.32052844,130.45,130.42,0.65871014]
[1767372346527,9.16026572,130.45,130.42,7.66742455]
[1767372346694,8.43526572,130.45,130.44,0.65871014]
[1767372346897,23.61191162,130.49,130.44,0.65871014]
[1767372347322,9.76389404,130.5,130.45,0.65871014]
[1767372347523,9.16026272,130.49,130.45,0.65871014]
[1767372348095,9.16026272,130.48,130.43,8.32547961]
[1767372348310,9.16026272,130.45,130.41,0.65871014]
[1767372348513,9.16026272,130.44,130.41,0.65871014]
[1767372348712,9.76631883,130.44,130.39,8.32764422]
[1767372349004,14.58605611,130.44,130.4,7.66862875]
[1767372349218,23.74631883,130.44,130.39,0.65871014]
[1767372349521,9.16026272,130.43,130.39,0.65871014]
[1767372349712,23.14026272,130.43,130.39,0.65871014]
[1767372350019,13.98,130.43,130.39,8.32792331]
[1767372350818,23.14026272,130.43,130.39,8.32792331]
[1767372351311,9.16026272,130.43,130.39,0.65871014]
[1767372351707,23.14026272,130.43,130.39,0.65871014]
[1767372352105,9.84394958,130.43,130.39,7.66909838]
[1767372352419,8.35393292,130.43,130.37,18.01715533]
[1767372352615,13.98,130.43,130.39,7.66902326]
[1767372352816,9.16026272,130.44,130.4,0.65871014]
[1767372353116,0.68692029,130.49,130.44,0.65871014]
[1767372353302,9.16026272,130.52,130.47,0.65871014]
[1767372353501,9.16026272,130.51,130.47,0.65871014]
[1767372353699,9.16026272,130.5,130.45,0.65871014]
[1767372353924,9.16026272,130.5,130.45,8.32420284]
[1767372354144,9.7647186,130.5,130.45,8.32420284]
[1767372354423,0.68692029,130.55,130.48,0.65871014]
[1767372354596,14.58363132,130.54,130.48,0.65871014]
[1767372354796,0.60445588,130.51,130.47,9.16026272]
[1767372355003,0.68692029,130.53,130.47,9.81897286]
[1767372355206,9.16026272,130.52,130.47,9.81897286]
[1767372355395,9.16026272,130.51,130.47,0.65871014]
[1767372355802,9.16026272,130.51,130.47,8.32328478]
[1767372355997,9.16026272,130.51,130.47,0.65871014]
[1767372356409,0.60363132,130.52,130.48,0.65871014]
[1767372356410,9.16026272,130.52,130.48,0.65871014]
[1767372356819,9.16026272,130.51,130.47,7.66450257]
[1767372357127,9.16026272,130.5,130.46,0.65871014]
[1767372357323,14.66692029,130.53,130.47,16.82472121]
[1767372357533,9.84718301,130.53,130.48,9.16026272]
[1767372357840,9.84718301,130.53,130.47,26.82595155]
[1767372358132,9.84718301,130.53,130.47,35.98621427]
[1767372358929,0.68692029,130.53,130.47,35.98621427]
[1767372359133,9.16026272,130.52,130.47,26.82595155]
[1767372359317,9.16026272,130.52,130.48,0.68703758]
[1767372359940,0.68692029,130.53,130.48,8.35084398]
[1767372360230,0.68692029,130.53,130.48,0.68703758]
[1767372360441,9.16026272,130.5,130.45,0.68703758]
[1767372360737,0.61467479,130.5,130.45,0.68703758]
[1767372361104,0.67515436,130.49,130.43,0.68703758]
[1767372361311,0.67576527,130.53,130.49,0.68703758]
[1767372361809,9.83541708,130.55,130.51,0.68703758]
[1767372362021,9.16026272,130.54,130.51,0.68703758]
[1767372362226,9.16026272,130.53,130.49,0.68703758]
[1767372362412,8.3352749,130.55,130.49,8.35031899]
[1767372362619,9.16026272,130.54,130.49,8.35031899]
[1767372362830,9.16026272,130.54,130.49,0.68703758]
[1767372363144,9.16026272,130.54,130.49,8.3503769]
[1767372363440,9.16026272,130.54,130.5,7.66267284]
[1767372363623,9.16026272,130.54,130.49,8.3502047]
[1767372363809,0.67515436,130.55,130.47,19.16090848]
[1767372363810,9.16026272,130.52,130.47,0.68703758]
[1767372364004,0.67576527,130.55,130.49,0.68703758]
[1767372364337,9.16026272,130.54,130.5,0.68703758]
[1767372364547,9.16026272,130.52,130.48,0.68703758]
[1767372364833,9.16026272,130.5,130.47,8.35153364]
[1767372365052,9.16026272,130.51,130.47,8.35153364]
[1767372365211,13.98,130.54,130.47,8.35153364]
[1767372365212,14.65576527,130.54,130.49,0.68703758]
[1767372365418,9.16026272,130.52,130.49,0.68703758]
[1767372365626,9.16026272,130.52,130.47,0.68703758]
[1767372365627,9.16026272,130.5,130.47,0.68703758]
[1767372365831,9.16026272,130.51,130.48,0.68703758]
[1767372366427,9.16026272,130.5,130.47,0.68703758]
[1767372366647,9.16026272,130.5,130.47,8.35160426]
[1767372367061,9.16026272,130.49,130.45,0.68703758]
[1767372367340,0.67576527,130.53,130.46,0.68703758]
[1767372367544,9.16026272,130.51,130.47,0.68703758]
[1767372368050,9.16026272,130.5,130.47,0.68703758]
[1767372368231,9.16026272,130.5,130.47,61.88703758]
[1767372368430,0.61527959,130.5,130.46,7.66476552]
[1767372368626,9.77554231,130.5,130.46,8.3518031]
[1767372369024,9.16026272,130.49,130.46,8.3518031]
[1767372369220,0.67576527,130.52,130.46,8.3518031]
[1767372369419,9.16026272,130.49,130.46,8.3518031]
[1767372369854,0.61467479,130.51,130.46,8.3518031]
[1767372370026,9.16026272,130.49,130.46,8.3518031]
[1767372370348,9.16026272,130.5,130.46,8.3518031]
[1767372370535,9.16026272,130.5,130.47,0.68703758]
[1767372371047,14.65576527,130.53,130.47,0.68703758]
[1767372371234,9.16026272,130.52,130.47,0.68703758]
[1767372371426,9.16026272,130.51,130.47,0.68703758]
[1767372371626,0.61467479,130.52,130.47,0.68703758]
[1767372371930,9.16026272,130.51,130.47,0.68703758]
[1767372372747,9.16026272,130.51,130.47,8.35115464]
[1767372372965,9.16026272,130.51,130.48,0.68703758]
[1767372373553,9.16026272,130.49,130.46,8.35202475]
[1767372374051,0.67576527,130.55,130.48,0.68703758]
[1767372374353,0.61527959,130.52,130.48,0.68703758]
[1767372374552,5.65604463,130.53,130.48,14.66703758]
[1767372374727,0.61467479,130.55,130.5,8.34987282]
[1767372374927,5.65604463,130.53,130.5,8.34987282]
[1767372375148,5.65604463,130.53,130.5,0.68703758]
[1767372375637,5.65604463,130.52,130.48,14.66703758]
[1767372375949,7.6601115,130.55,130.49,0.68703758]
[1767372375950,0.61527959,130.53,130.49,0.68703758]
[1767372376157,5.65604463,130.5,130.49,0.68703758]
[1767372376357,5.65604463,130.51,130.49,8.35035605]
[1767372376732,0.61527959,130.53,130.48,21.64376094]
[1767372376733,5.65604463,130.5,130.48,21.64376094]
[1767372376929,5.65604463,130.5,130.48,13.98]
[1767372377159,5.65604463,130.5,130.47,8.35136241]
[1767372377160,6.3318099,130.49,130.47,7.66432483]
[1767372377338,0.67576527,130.52,130.47,8.35136241]
[1767372377540,21.64124283,130.53,130.44,38.33041172]
[1767372377541,13.98,130.53,130.48,8.35094512]
[1767372377743,5.65604463,130.5,130.48,8.35094512]
[1767372377948,5.65604463,130.49,130.48,8.35094512]
[1767372378161,5.65604463,130.5,130.48,8.35094512]
[1767372378454,5.65604463,130.52,130.49,0.68703758]
[1767372378958,14.006183,130.59,130.5,8.34987282]
[1767372378959,5.65604463,130.53,130.5,8.34987282]
[1767372379639,5.65604463,130.51,130.46,8.35013837]
[1767372379848,0.67576527,130.52,130.47,0.68703758]
[1767372380165,0.67576527,130.57,130.5,0.68703758]
[1767372380344,5.65604463,130.58,130.52,0.68703758]
[1767372380536,5.65604463,130.56,130.52,0.68703758]
[1767372380736,5.65604463,130.55,130.52,0.68703758]
[1767372381062,5.65604463,130.55,130.51,7.66179572]
[1767372381256,5.65604463,130.54,130.5,19.84364246]
[1767372381433,5.65604463,130.54,130.51,7.66187722]
[1767372381947,5.65604463,130.54,130.5,8.34948174]
[1767372382350,6.3318099,130.54,130.5,8.34948174]
[1767372382828,6.3318099,130.54,130.5,7.66244416]
[1767372383458,0.67576527,130.54,130.49,21.64324985]
[1767372383645,6.3318099,130.53,130.49,21.64324985]
[1767372384258,33.12598501,130.58,130.48,7.66373836]
[1767372384259,5.65604463,130.51,130.48,7.66373836]
[1767372384462,5.65604463,130.5,130.47,8.35125221]
[1767372384659,5.65604463,130.51,130.48,7.66397868]
[1767372384859,0.67576527,130.52,130.48,8.35101626]
[1767372384860,6.3318099,130.52,130.48,8.35101626]
[1767372385355,5.65604463,130.52,130.48,0.68703758]
[1767372385557,6.3318099,130.51,130.47,7.66451434]
[1767372385756,5.65604463,130.5,130.47,7.66451434]
[1767372386072,0.67576527,130.53,130.48,0.68703758]
[1767372386370,6.3318099,130.53,130.48,0.68703758]
[1767372387048,6.3318099,130.53,130.49,0.68714099]
[1767372387247,5.65604463,130.52,130.49,0.68714099]
[1767372387657,5.65604463,130.51,130.47,8.35149615]
[1767372387868,5.65604463,130.51,130.48,7.66393501]
[1767372388037,5.65604463,130.52,130.48,7.66393501]
[1767372388239,5.65604463,130.5,130.47,7.66434027]
[1767372388973,5.65604463,130.49,130.46,7.66494518]
[1767372389261,5.65604463,130.49,130.46,8.35208617]
[1767372389564,5.65604463,130.5,130.46,8.35208617]
[1767372390062,0.71498669,130.51,130.46,8.35208617]
[1767372390268,5.65604463,130.49,130.46,8.35208617]
[1767372390458,5.65604463,130.5,130.46,8.35208617]
[1767372390651,6.37103132,130.51,130.46,8.35208617]
[1767372390965,44.67837655,130.62,130.47,0.6538773]
[1767372390966,6.37751478,130.53,130.47,0.6538773]
[1767372391172,6.37751478,130.54,130.49,8.31729978]
[1767372391335,5.65604463,130.53,130.49,8.31729978]
[1767372392548,0.72147015,130.51,130.49,7.66342248]
[1767372392742,0.72147015,130.51,130.49,6.36324373]
[1767372393142,5.65604463,130.52,130.49,0.6538773]
[1767372393363,5.65604463,130.52,130.48,7.6640098]
[1767372393543,0.61624544,130.53,130.48,0.6538773]
[1767372393544,5.65604463,130.51,130.48,0.6538773]
[1767372393857,5.65604463,130.5,130.47,0.6538773]
[1767372394037,5.65604463,130.5,130.47,8.31841145]
[1767372394466,0.10417246,130.52,130.47,8.31841145]
[1767372394648,5.65604463,130.52,130.48,0.6538773]
[1767372394846,5.65604463,130.53,130.48,0.6538773]
[1767372395040,5.65604463,130.52,130.48,0.6538773]
[1767372395257,5.65604463,130.53,130.49,0.6538773]
[1767372395438,5.65604463,130.54,130.49,0.6538773]
[1767372395645,0.099,130.55,130.49,0.6538773]
[1767372395948,5.65604463,130.54,130.5,0.6538773]
[1767372396354,5.65604463,130.53,130.49,0.6538773]
[1767372396753,5.65604463,130.52,130.48,21.64368035]
[1767372397161,5.76021709,130.53,130.48,22.29755765]
[1767372397474,5.75504463,130.54,130.49,0.6538773]
[1767372397771,7.65995097,130.55,130.49,0.6538773]
[1767372397964,5.65604463,130.54,130.49,0.6538773]
[1767372398172,6.27229007,130.54,130.49,0.6538773]
[1767372398471,0.61624544,130.54,130.49,0.6538773]
[1767372398672,13.93308641,130.54,130.49,0.6538773]
[1767372398860,5.65604463,130.53,130.49,0.6538773]
[1767372399205,0.61112471,130.52,130.48,19.63604463]
[1767372399373,5.76528661,130.51,130.46,8.3187606]
[1767372399687,6.25723156,130.48,130.43,0.6538773]
[1767372399841,5.65604463,130.47,130.43,8.3208197]
[1767372400044,5.65604463,130.47,130.43,0.6538773]
[1767372400343,6.25723156,130.48,130.43,8.32074244]
[1767372400778,5.65604463,130.47,130.43,0.6538773]
[1767372401160,5.65604463,130.44,130.41,0.6538773]
[1767372401351,6.24768538,130.44,130.39,0.6538773]
[1767372401667,26.82410518,130.48,130.37,31.33844519]
[1767372401668,6.24305428,130.42,130.37,18.01232249]
[1767372401870,5.65604463,130.42,130.37,23.66836712]
[1767372402162,0.62147015,130.44,130.38,0.6538773]
[1767372402350,13.98,130.47,130.41,6.30992193]
[1767372402670,19.73504463,130.47,130.42,6.30992193]
[1767372403049,5.75504463,130.47,130.42,6.30992193]
[1767372403782,5.75504463,130.47,130.41,7.6676197]
[1767372403956,5.75504463,130.47,130.41,13.32366433]
[1767372404150,0.099,130.47,130.42,5.65604463]
[1767372404358,5.75504463,130.47,130.42,5.65604463]
[1767372404666,0.61624544,130.46,130.41,6.30992193]
[1767372405276,0.61624544,130.46,130.41,13.97801267]
[1767372405580,6.27229007,130.46,130.41,0.6538773]
[1767372405880,0.61112471,130.44,130.4,5.65604463]
[1767372406065,14.59112471,130.44,130.4,5.65604463]
[1767372406476,0.62147015,130.46,130.42,5.65604463]
[1767372406707,13.98,130.46,130.43,5.65604463]
[1767372406857,8.28572992,130.48,130.44,5.65604463]
[1767372406858,14.079,130.47,130.44,5.65604463]
[1767372407057,14.079,130.47,130.43,5.65604463]
[1767372407765,14.079,130.47,130.44,5.65604463]
[1767372407961,24.81516228,130.49,130.46,5.65604463]
[1767372407962,14.60147015,130.49,130.46,5.65604463]
[1767372408266,13.98,130.5,130.47,5.65604463]
[1767372408485,13.98,130.52,130.49,5.65604463]
[1767372408655,14.079,130.52,130.48,5.65604463]
[1767372408855,7.76100298,130.52,130.48,5.65604463]
[1767372409087,21.74100298,130.52,130.48,5.65604463]
[1767372409684,0.61624544,130.54,130.49,5.65604463]
[1767372409883,13.98,130.53,130.48,0.6538773]
[1767372410065,13.98,130.53,130.49,5.65604463]
[1767372410470,6.27229007,130.54,130.49,5.65604463]
[1767372410679,13.93708085,130.56,130.5,0.6538773]
[1767372410876,13.93708085,130.56,130.52,5.65604463]
[1767372410877,22.26103622,130.56,130.52,5.65604463]
[1767372411675,13.98,130.56,130.52,5.65604463]
[1767372411872,13.98,130.56,130.53,5.65604463]
[1767372412272,7.7578825,130.57,130.53,5.65604463]
[1767372412485,13.98,130.56,130.53,5.65604463]
[1767372412690,22.25564434,130.56,130.53,5.65604463]
[1767372413062,22.25564434,130.56,130.51,6.30992193]
[1767372413262,22.25564434,130.56,130.52,5.65604463]
[1767372413459,8.27564434,130.56,130.52,5.65604463]
[1767372413670,13.98,130.55,130.52,5.65604463]
[1767372413870,13.98,130.55,130.51,0.6538773]
[1767372414266,13.98,130.55,130.53,5.65604463]
[1767372414465,13.98,130.55,130.52,5.65604463]
[1767372414988,14.079,130.55,130.52,5.65604463]
[1767372415204,21.73899042,130.55,130.51,5.65604463]
[1767372415381,0.61624544,130.54,130.51,5.65604463]
[1767372415889,0.61624544,130.54,130.52,5.65604463]
[1767372415890,13.98,130.54,130.52,5.65604463]
[1767372416194,13.98,130.56,130.53,5.65604463]
[1767372416701,13.98,130.56,130.51,0.6538773]
[1767372416702,13.98,130.56,130.52,5.65604463]
[1767372417580,0.62147015,130.57,130.53,5.65604463]
[1767372417768,13.98,130.56,130.54,5.65604463]
[1767372417964,13.98,130.56,130.53,6.30992193]
[1767372418580,13.98,130.56,130.51,7.66223276]
[1767372418581,13.98,130.56,130.52,5.65604463]
[1767372419269,13.98,130.56,130.51,0.6538773]
[1767372419478,13.98,130.56,130.52,5.65604463]
[1767372420093,21.63945259,130.56,130.52,5.65604463]
[1767372420297,13.98,130.57,130.54,6.37157122]
[1767372420498,13.98,130.58,130.55,5.65604463]
[1767372420667,13.98,130.58,130.51,7.66220267]
[1767372420668,19.73504463,130.58,130.52,0.71552659]
[1767372420993,5.65604463,130.56,130.52,0.71552659]
[1767372421177,0.11421062,130.52,130.46,0.71552659]
[1767372421375,5.65604463,130.5,130.46,0.68553832]
[1767372421775,13.98,130.51,130.46,6.34158295]
[1767372422097,19.63604463,130.51,130.46,0.68553832]
[1767372422280,13.94924216,130.51,130.46,6.34158295]
[1767372422472,5.65604463,130.5,130.46,0.68553832]
[1767372422674,5.65604463,130.5,130.45,5.65604463]
[1767372422675,5.77542189,130.5,130.45,5.65604463]
[1767372422880,0.11937726,130.5,130.45,5.65604463]
[1767372423204,14.09937726,130.5,130.44,5.65604463]
[1767372423496,13.98,130.5,130.46,0.71552659]
[1767372424402,19.63604463,130.51,130.47,0.71552659]
[1767372425200,19.63604463,130.51,130.48,0.71552659]
[1767372425201,13.98,130.51,130.48,0.71552659]
[1767372425386,19.63604463,130.51,130.46,14.03672156]
[1767372425588,27.40282737,130.51,130.46,0.71552659]
[1767372425796,13.42282737,130.51,130.46,0.71552659]
[1767372425979,27.40282737,130.51,130.46,6.37157122]
[1767372426175,14.08446934,130.51,130.46,6.37157122]
[1767372426379,19.74051397,130.51,130.46,14.03669139]
[1767372426580,27.40284939,130.51,130.46,6.37157122]
[1767372427097,27.40284939,130.51,130.46,0.71552659]
[1767372428108,5.65604463,130.52,130.48,0.71552659]
[1767372428412,13.98,130.52,130.48,6.37157122]
[1767372428586,5.65604463,130.52,130.47,0.71552659]
[1767372428781,19.63604463,130.53,130.49,0.71552659]
[1767372428979,5.65604463,130.53,130.49,0.71552659]
[1767372429180,13.98,130.54,130.5,6.37157122]
[1767372429588,27.94632115,130.57,130.51,6.37157122]
[1767372429803,5.65604463,130.56,130.51,6.37157122]
[1767372430005,5.65604463,130.56,130.51,0.71552659]
[1767372430191,5.65604463,130.56,130.52,0.71552659]
[1767372430386,5.65604463,130.56,130.51,5.65604463]
[1767372430387,5.65604463,130.55,130.5,14.03392852]
[1767372430599,21.6388181,130.57,130.51,8.37764014]
[1767372430792,5.65604463,130.56,130.52,0.71552659]
[1767372431300,19.63604463,130.56,130.52,0.71552659]
[1767372431501,5.65604463,130.53,130.48,6.37157122]
[1767372431799,14.08982984,130.53,130.48,0.71552659]
[1767372431975,5.65604463,130.52,130.48,0.71552659]
[1767372432178,5.65604463,130.51,130.47,0.71552659]
[1767372432384,6.29125692,130.52,130.47,6.37157122]
[1767372432586,20.27125692,130.52,130.47,6.37157122]
[1767372432814,20.27125692,130.52,130.48,0.71552659]
[1767372433013,19.63604463,130.52,130.48,0.71552659]
[1767372433807,13.98,130.55,130.51,0.71552659]
[1767372434007,19.63604463,130.55,130.51,0.71552659]
[1767372434205,13.98,130.55,130.51,0.71552659]
[1767372434412,13.98,130.55,130.51,14.03367645]
[1767372434604,13.98,130.55,130.51,0.71552659]
[1767372435187,13.98,130.56,130.53,0.71552659]
[1767372435392,13.98,130.56,130.52,9.90264494]
[1767372435624,0.65145842,130.61,130.55,0.71552659]
[1767372435914,0.099,130.6,130.55,9.90264494]
[1767372436098,0.099,130.6,130.55,0.71552659]
[1767372436300,9.18711835,130.61,130.56,9.90264494]
[1767372436498,8.30666778,130.63,130.58,9.90264494]
[1767372436813,13.98,130.62,130.59,9.18711835]
[1767372437013,0.64593383,130.61,130.59,9.18711835]
[1767372437221,9.38711835,130.66,130.6,9.18711835]
[1767372437517,9.18711835,130.62,130.57,0.71552659]
[1767372437690,9.18711835,130.62,130.57,9.90264494]
[1767372438191,9.83857677,130.63,130.58,9.18711835]
[1767372438401,8.30569707,130.65,130.59,0.71552659]
[1767372438600,13.98,130.63,130.59,9.90264494]
[1767372438816,0.65145842,130.65,130.6,9.90264494]
[1767372439002,13.98,130.64,130.61,0.71552659]
[1767372439312,17.13978996,130.66,130.58,7.6579075]
[1767372439313,13.98,130.65,130.62,9.90264494]
[1767372439497,9.18711835,130.64,130.6,0.71552659]
[1767372439691,9.18711835,130.63,130.58,17.56055244]
[1767372439892,14.08446934,130.65,130.59,9.90264494]
[1767372440094,9.18711835,130.64,130.59,9.90264494]
[1767372440498,23.27158769,130.65,130.6,9.90264494]
[1767372440689,17.04090433,130.66,130.61,9.90264494]
[1767372440903,9.38711835,130.66,130.61,9.90264494]
[1767372441202,31.02057123,130.66,130.61,9.90264494]
[1767372441519,9.38711835,130.66,130.61,9.90264494]
[1767372441697,23.36711835,130.66,130.61,9.90264494]
[1767372441896,14.18,130.66,130.61,9.90264494]
[1767372442098,23.36711835,130.66,130.61,9.90264494]
[1767372442293,14.18,130.66,130.61,0.71552659]
[1767372442520,9.18711835,130.65,130.61,0.71552659]
[1767372442720,23.36711835,130.66,130.61,9.90264494]
[1767372443098,23.36711835,130.66,130.61,17.55880148]
[1767372443406,14.18,130.66,130.61,9.90264494]
[1767372443597,23.36711835,130.66,130.61,9.90264494]
[1767372443798,23.36711835,130.66,130.61,0.71552659]
[1767372444015,23.36711835,130.66,130.61,9.90264494]
[1767372444317,0.2,130.66,130.63,0.71552659]
[1767372444516,0.2,130.66,130.64,0.71552659]
[1767372444723,0.2,130.67,130.66,0.71552659]
[1767372445219,0.2,130.68,130.66,9.90264494]
[1767372445424,0.2,130.71,130.67,0.71552659]
[1767372445627,0.2,130.71,130.67,9.90264494]
[1767372445831,0.2,130.71,130.68,9.90264494]
[1767372446138,0.67982782,130.74,130.7,0.71552659]
[1767372446299,9.18711835,130.76,130.72,0.71552659]
[1767372446493,9.18711835,130.76,130.72,9.18711835]
[1767372446494,0.67982782,130.76,130.72,9.18711835]
[1767372446698,9.18711835,130.77,130.72,16.83704052]
[1767372447036,8.33117857,130.79,130.73,9.18711835]
[1767372447205,9.87233654,130.79,130.73,9.18711835]
[1767372447408,0.68521819,130.79,130.72,7.64992217]
[1767372447726,9.18711835,130.77,130.72,7.64992217]
[1767372447929,9.18711835,130.74,130.68,19.1305588]
[1767372448109,9.87233654,130.73,130.68,9.18711835]
[1767372448424,0.68521819,130.73,130.69,9.84944451]
[1767372448626,9.18711835,130.7,130.65,9.84944451]
[1767372448802,9.18711835,130.69,130.65,0.66232616]
[1767372449127,9.18711835,130.66,130.63,0.66232616]
[1767372449307,9.18711835,130.66,130.6,19.14206871]
[1767372449308,0.68968559,130.66,130.61,0.66424379]
[1767372449621,9.18711835,130.68,130.64,0.66424379]
[1767372449826,9.18711835,130.69,130.64,8.31868933]
[1767372450124,9.18711835,130.67,130.62,8.31953097]
[1767372450316,0.68968559,130.7,130.63,0.66424379]
[1767372450516,0.68968559,130.69,130.64,8.31881859]
[1767372450824,9.87680394,130.69,130.64,8.31881859]
[1767372451704,9.18711835,130.71,130.67,0.66424379]
[1767372452105,0.68968559,130.72,130.67,0.66424379]
[1767372452303,9.18711835,130.7,130.67,0.66424379]
[1767372452904,14.64968559,130.73,130.68,9.85136214]
[1767372453095,9.18711835,130.76,130.7,9.18711835]
[1767372453319,9.18711835,130.74,130.69,0.66424379]
[1767372453503,9.87680394,130.75,130.7,9.18711835]
[1767372454210,9.18711835,130.74,130.69,9.85136214]
[1767372454524,9.87680394,130.74,130.69,9.85136214]
[1767372454723,0.68968559,130.74,130.7,9.18711835]
[1767372454907,9.87680394,130.78,130.72,9.85136214]
[1767372455427,9.87680394,130.78,130.73,9.85136214]
[1767372455428,0.68968559,130.78,130.73,9.85136214]
[1767372455604,0.68968559,130.8,130.75,9.85136214]
[1767372455930,9.18711835,130.79,130.75,0.66424379]
[1767372456334,0.68968559,130.8,130.75,9.85136214]
[1767372456631,9.87680394,130.8,130.75,17.49950994]
[1767372457130,17.52243232,130.8,130.75,0.66424379]
[1767372457433,0.68968559,130.8,130.75,0.66424379]
[1767372457732,9.18711835,130.79,130.75,0.66424379]
[1767372457932,9.87680394,130.8,130.75,0.66424379]
[1767372458230,9.87680394,130.8,130.75,17.49946981]
[1767372458522,0.68968559,130.8,130.75,17.49946981]
[1767372458722,9.18711835,130.79,130.75,0.66424379]
[1767372458909,9.18711835,130.77,130.73,8.31353677]
[1767372459113,9.87680394,130.78,130.73,0.66424379]
[1767372459312,0.68968559,130.78,130.73,0.66424379]
[1767372459818,0.68968559,130.76,130.71,0.66424379]
[1767372460017,9.18711835,130.75,130.71,0.66424379]
[1767372460227,0.68968559,130.75,130.7,16.83809499]
[1767372460404,0.68968559,130.75,130.7,16.83801611]
[1767372460605,9.87680394,130.75,130.7,7.65089776]
[1767372461331,9.87680394,130.75,130.7,8.31514155]
[1767372461631,9.18711835,130.74,130.7,8.31514155]
[1767372461833,9.18711835,130.74,130.68,42.27681704]
[1767372461834,9.18711835,130.72,130.68,0.66424379]
[1767372462031,9.87680394,130.72,130.66,33.75724026]
[1767372462207,26.76868362,130.75,130.65,7.65381461]
[1767372462208,9.18711835,130.69,130.65,7.65381461]
[1767372462407,14.64968559,130.74,130.68,8.31612806]
[1767372462607,13.96,130.74,130.69,0.66424379]
[1767372462836,9.18711835,130.74,130.69,9.85136214]
[1767372463023,9.18711835,130.73,130.69,0.66424379]
[1767372463420,9.18711835,130.72,130.69,0.66424379]
[1767372463727,9.18711835,130.73,130.69,0.66424379]
[1767372463923,0.68968559,130.73,130.67,8.3170348]
[1767372464128,9.18711835,130.72,130.67,8.3170348]
[1767372464320,0.68968559,130.72,130.67,0.66424379]
[1767372464515,9.18711835,130.7,130.66,13.96]
[1767372464724,8.33750123,130.76,130.68,0.66424379]
[1767372464925,9.18711835,130.73,130.69,0.66424379]
[1767372465126,9.18711835,130.72,130.67,9.85136214]
[1767372465308,9.18711835,130.71,130.67,0.66424379]
[1767372465514,0.68968559,130.73,130.67,0.66424379]
[1767372465515,9.18711835,130.7,130.67,0.66424379]
[1767372465708,9.18711835,130.71,130.67,0.66424379]
[1767372465930,0.68968559,130.73,130.68,0.66424379]
[1767372465931,9.18711835,130.72,130.68,0.66424379]
[1767372467420,9.18711835,130.72,130.66,19.13362926]
[1767372467421,9.87680394,130.7,130.66,7.65322991]
[1767372467622,9.18711835,130.71,130.67,7.65275679]
[1767372467938,9.87680394,130.7,130.66,0.66424379]
[1767372468527,9.18711835,130.69,130.66,0.66424379]
[1767372468726,9.18711835,130.69,130.65,7.65393951]
[1767372468945,9.18711835,130.68,130.65,7.65393951]
[1767372469115,9.18711835,130.69,130.65,8.3181833]
[1767372470043,9.18711835,130.66,130.63,0.66424379]
[1767372470560,9.18711835,130.68,130.64,0.66424379]
[1767372470727,9.18711835,130.66,130.62,32.31730969]
[1767372470928,0.68968559,130.67,130.62,32.31730969]
[1767372471224,0.68968559,130.69,130.63,0.66424379]
[1767372471459,0.68968559,130.71,130.65,0.66424379]
[1767372471757,9.87680394,130.71,130.66,0.66424379]
[1767372472324,9.18711835,130.7,130.66,0.66424379]
[1767372473567,9.87680394,130.7,130.66,0.66424379]
[1767372474061,9.18711835,130.69,130.66,0.66424379]
[1767372474286,9.18711835,130.72,130.67,0.66424379]
[1767372474556,9.87680394,130.72,130.67,0.66424379]
[1767372474754,9.87680394,130.72,130.67,9.85136214]
[1767372474961,9.18711835,130.73,130.69,0.66424379]
[1767372475143,0.68968559,130.76,130.71,9.85136214]
[1767372475444,0.68968559,130.8,130.76,0.66424379]
[1767372475651,0.68968559,130.8,130.76,23.14711835]
[1767372475823,9.87680394,130.8,130.76,13.96]
[1767372476022,0.68968559,130.82,130.77,9.18711835]
[1767372476226,0.68968559,130.81,130.77,9.18711835]